bitfinex/quotes_ETHUSD_20251116
["timestamp","ask_amount","ask_price","bid_price","bid_amount"]
[1763293303803,0.0009,3168.0,3167.2,0.405504]
[1763293303966,0.0009,3168.0,3167.2,0.881104]
[1763293304484,0.0009,3168.0,3167.3,0.4756]
[1763293306213,0.0009,3168.0,3167.4,0.405504]
[1763293306623,0.0009,3168.0,3167.7,0.5]
[1763293306789,0.0009,3168.0,3167.8,0.405504]
[1763293306995,0.0009,3168.0,3167.8,0.881104]
[1763293307420,0.0009,3168.0,3167.9,0.4756]
[1763293307718,0.0009,3168.0,3167.4,0.4756]
[1763293308634,0.0009,3168.0,3167.9,0.4679]
[1763293308985,0.0009,3168.0,3167.9,0.9435]
[1763293309616,0.0009,3168.0,3167.4,0.4756]
[1763293310200,0.0009,3168.0,3167.9,0.4679]
[1763293310882,0.0009,3168.0,3167.6,0.4756]
[1763293311082,0.0009,3168.0,3167.2,0.881104]
[1763293311520,0.0009,3168.0,3167.3,0.4756]
[1763293312623,0.0009,3168.0,3167.9,0.4679]
[1763293312827,0.0009,3168.0,3167.9,1.349004]
[1763293313205,0.0009,3168.0,3167.9,0.4679]
[1763293313404,0.0009,3168.0,3167.1,0.1839]
[1763293313405,0.0009,3168.0,3167.3,0.4756]
[1763293313587,0.0009,3168.0,3167.9,0.9435]
[1763293313928,0.0009,3168.0,3167.9,0.4679]
[1763293314494,0.0009,3168.0,3167.9,0.9435]
[1763293314912,0.0009,3168.0,3167.9,1.349004]
[1763293315726,0.0009,3168.0,3167.9,1.849004]
[1763293315928,0.0009,3168.0,3167.9,2.0339044]
[1763293316598,0.002,3169.4,3167.9,1.6284004]
[1763293316800,0.002,3169.4,3168.5,0.405504]
[1763293316994,0.002,3169.4,3168.6,0.405504]
[1763293317214,0.002,3169.4,3168.6,1.061104]
[1763293317591,0.002,3169.4,3168.7,0.4756]
[1763293317845,0.002,3169.4,3169.3,0.6518]
[1763293318336,0.002,3169.4,3169.3,1.1274]
[1763293318997,0.002,3169.4,3169.3,1.532904]
[1763293320419,0.002,3169.4,3169.3,0.6518]
[1763293320893,0.002,3169.4,3169.1,0.1839]
[1763293321095,0.002,3169.4,3168.6,0.18]
[1763293321525,0.4874,3169.4,3168.6,0.18]
[1763293321915,0.002,3169.4,3168.6,0.6556]
[1763293323036,0.002,3169.4,3168.7,0.4756]
[1763293323236,0.1975,3168.7,3168.1,0.1839]
[1763293323641,0.4874,3169.4,3168.1,0.1839]
[1763293323847,0.4874,3169.4,3168.1,0.6595]
[1763293324241,0.4874,3169.4,3168.1,0.1839]
[1763293324413,0.4874,3169.4,3167.8,0.18]
[1763293325354,3.8144,3169.4,3167.5,0.198]
[1763293325580,3.8144,3169.4,3167.3,0.001]
[1763293325581,0.4486,3167.5,3167.3,0.001]
[1763293325860,0.0192,3167.4,3167.3,0.001]
[1763293326065,0.1891,3167.7,3167.3,0.001]
[1763293326259,0.2925,3167.4,3167.3,0.001]
[1763293326464,0.1891,3167.7,3167.3,0.001]
[1763293326625,0.658,3167.7,3167.3,0.001]
[1763293327263,0.461,3167.4,3167.3,0.001]
[1763293327722,0.7613,3167.4,3167.3,0.001]
[1763293327922,0.2925,3167.4,3167.3,0.001]
[1763293328123,0.7596,3167.4,3167.3,0.001]
[1763293330728,0.7596,3167.4,3166.0,0.001]
[1763293330924,0.0047,3167.0,3166.0,0.001]
[1763293331324,0.4736,3167.0,3166.0,0.001]
[1763293332444,0.477,3166.1,3166.0,0.001]
[1763293332962,0.9459,3166.1,3166.0,0.001]
[1763293333716,0.1891,3166.4,3166.0,0.001]
[1763293334057,0.4689,3167.6,3166.1,0.1545]
[1763293334261,0.1891,3166.5,3166.0,0.001]
[1763293334767,0.467,3166.9,3166.0,0.001]
[1763293334996,0.1851,3166.7,3166.1,0.1928]
[1763293335304,0.1851,3166.7,3166.0,0.001]
[1763293335595,0.467,3166.6,3166.0,0.001]
[1763293336084,0.3066,3166.1,3166.0,0.001]
[1763293336384,0.1851,3166.7,3166.1,0.1928]
[1763293336584,0.6521,3166.7,3166.0,0.001]
[1763293337156,0.1851,3166.9,3166.1,0.1928]
[1763293337762,0.6521,3166.9,3166.1,0.1928]
[1763293338788,0.1851,3166.9,3166.1,0.1928]
[1763293339387,0.1851,3167.2,3166.2,0.4651]
[1763293339565,0.1851,3167.2,3166.1,0.6579]
[1763293340787,0.1851,3167.2,3166.2,0.4651]
[1763293341457,0.467,3167.4,3166.2,0.4651]
[1763293341855,0.467,3167.4,3166.0,0.001]
[1763293342160,3.327,3167.2,3166.0,0.001]
[1763293342379,3.77307408,3167.1,3166.0,0.001]
[1763293342791,0.467,3167.0,3166.0,0.001]
[1763293343287,0.1851,3166.9,3166.1,0.1928]
[1763293343858,0.467,3166.8,3166.0,0.001]
[1763293344053,0.1851,3167.2,3166.1,0.1928]
[1763293344277,0.1851,3167.2,3166.2,0.4651]
[1763293345488,0.6521,3167.2,3166.2,0.4651]
[1763293346218,0.1851,3167.2,3166.2,0.4651]
[1763293346400,0.6561,3167.7,3166.3,0.405504]
[1763293346694,0.1851,3167.8,3167.1,0.6918]
[1763293347013,0.1851,3168.0,3167.1,0.6918]
[1763293347193,1.422,3168.4,3167.2,0.4651]
[1763293347390,0.16071,3168.3,3167.2,0.4651]
[1763293347867,1.422,3168.4,3167.2,0.4651]
[1763293348374,1.422,3168.4,3167.3,0.405504]
[1763293348573,1.422,3168.4,3167.4,0.4651]
[1763293348972,3.329,3169.4,3168.3,0.6918]
[1763293349178,0.002,3169.4,3168.3,0.6918]
[1763293349373,0.002,3169.4,3168.4,0.4651]
[1763293349575,0.002,3169.4,3167.8,0.405504]
[1763293349787,0.002,3169.4,3167.1,0.1928]
[1763293349788,0.467,3169.3,3167.5,0.4651]
[1763293351221,0.467,3169.3,3167.2,0.4651]
[1763293353016,0.469,3169.3,3167.2,0.4651]
[1763293355919,0.469,3169.3,3167.2,0.9651]
[1763293356223,0.469,3169.3,3167.3,0.4718]
[1763293359302,3.327,3169.2,3167.3,0.4718]
[1763293359509,0.3796,3169.1,3167.3,0.4718]
[1763293359706,0.3796,3169.1,3167.4,0.905504]
[1763293359707,0.8504,3169.1,3167.4,0.905504]
[1763293359909,0.4708,3169.1,3167.4,0.905504]
[1763293360128,0.4708,3169.1,3167.5,0.4718]
[1763293361604,0.002,3169.3,3167.6,0.905504]
[1763293361818,0.002,3169.3,3168.0,0.405504]
[1763293362228,0.002,3169.3,3168.1,0.4718]
[1763293363331,0.002,3169.3,3168.2,0.405504]
[1763293363516,0.002,3169.3,3168.2,0.905504]
[1763293363715,0.002,3169.3,3168.3,0.4718]
[1763293365773,0.4728,3169.3,3168.3,0.4718]
[1763293366672,0.4728,3169.3,3167.9,0.4718]
[1763293366873,3.7998,3169.3,3167.9,0.4718]
[1763293367170,0.38018,3169.2,3167.9,0.4718]
[1763293367377,0.85098,3169.2,3167.9,0.4718]
[1763293367867,0.4708,3169.1,3167.9,0.4718]
[1763293368853,0.4708,3169.1,3167.1,0.598304]
[1763293369053,0.4708,3169.1,3167.4,0.405504]
[1763293369357,3.327,3169.0,3167.2,0.405504]
[1763293369561,0.37978,3168.9,3167.5,0.4718]
[1763293369749,0.56528,3168.9,3167.5,0.4718]
[1763293370260,0.1855,3168.9,3167.6,0.405504]
[1763293370457,0.1855,3168.9,3167.7,0.4718]
[1763293371457,0.4708,3168.8,3167.7,0.4718]
[1763293372475,0.4708,3168.8,3167.6,0.4718]
[1763293372629,0.6563,3168.9,3167.7,0.4718]
[1763293373767,3.329,3169.3,3167.8,0.03156764]
[1763293373956,4.17798,3169.2,3167.7,0.4718]
[1763293374154,0.3104,3167.8,3167.1,0.1928]
[1763293374364,3.327,3169.0,3167.2,0.4718]
[1763293374584,0.1855,3168.0,3167.2,0.4718]
[1763293374884,3.327,3168.8,3167.2,0.4718]
[1763293375043,0.1855,3168.1,3167.2,0.4718]
[1763293375849,0.1855,3168.6,3167.2,0.4718]
[1763293376048,0.4708,3168.5,3167.2,0.4718]
[1763293376467,0.4708,3168.5,3167.1,0.1928]
[1763293377253,0.4708,3168.5,3167.1,0.6646]
[1763293377966,0.4708,3168.5,3167.2,0.4718]
[1763293379070,0.4708,3168.5,3166.9,0.001]
[1763293379272,0.4708,3168.5,3167.1,0.1974]
[1763293379476,0.4708,3168.5,3167.2,0.4718]
[1763293380194,0.1855,3168.6,3167.2,0.4718]
[1763293380408,0.6563,3168.6,3167.2,0.4718]
[1763293380811,0.4708,3168.5,3167.2,0.4718]
[1763293381006,0.4708,3168.5,3166.9,0.001]
[1763293381007,0.4973,3167.3,3166.9,0.001]
[1763293381301,0.0021,3167.2,3166.9,0.001]
[1763293381854,0.1855,3167.3,3166.9,0.001]
[1763293382305,0.4708,3167.8,3166.9,0.001]
[1763293382705,0.1855,3167.9,3167.0,0.4718]
[1763293382904,0.6563,3167.9,3166.9,0.001]
[1763293383408,0.4708,3167.8,3166.9,0.001]
[1763293384559,3.7978,3167.8,3166.9,0.001]
[1763293384780,3.72533,3167.7,3166.9,0.001]
[1763293385014,4.17723,3167.7,3166.9,0.001]
[1763293385318,0.4519,3167.6,3166.9,0.001]
[1763293385897,0.3295,3167.0,3166.9,0.001]
[1763293386323,0.7802,3167.0,3166.9,0.001]
[1763293386484,4.1072,3167.0,3166.9,0.001]
[1763293386797,4.51792,3167.0,3166.9,0.001]
[1763293387835,0.41072,3167.0,3166.9,0.001]
[1763293388017,0.7802,3167.0,3166.9,0.001]
[1763293388222,0.4507,3167.7,3166.9,0.4859]
[1763293388419,0.1855,3167.9,3166.9,0.9529]
[1763293388902,0.6374,3167.9,3166.9,0.4859]
[1763293389101,0.6374,3167.9,3166.9,0.9529]
[1763293389304,0.39644,3167.8,3166.9,0.9529]
[1763293389504,0.4519,3168.3,3167.0,0.467]
[1763293389744,0.6374,3168.6,3167.7,0.6657]
[1763293390103,0.1855,3168.6,3167.8,0.467]
[1763293390360,0.002,3168.9,3167.8,0.467]
[1763293390361,0.1837,3168.9,3167.8,0.467]
[1763293390843,0.6356,3168.9,3167.8,0.467]
[1763293391391,0.1837,3168.9,3167.8,0.467]
[1763293391511,0.4519,3168.8,3167.7,0.1808]
[1763293391918,0.1837,3168.9,3167.8,0.467]
[1763293392108,0.002,3168.9,3168.8,0.4849]
[1763293392303,0.002,3168.9,3167.8,0.467]
[1763293392515,0.1837,3168.9,3167.8,0.467]
[1763293392914,0.002,3168.9,3167.8,0.467]
[1763293393116,0.6356,3168.9,3167.8,0.467]
[1763293394321,0.4519,3168.8,3167.7,0.1808]
[1763293394945,0.4519,3168.8,3167.4,0.193]
[1763293395181,3.7789,3168.8,3167.2,0.6857]
[1763293395482,0.39626,3168.7,3167.2,0.6857]
[1763293395681,0.85126,3168.7,3167.2,0.6857]
[1763293395856,0.455,3168.6,3167.2,0.6857]
[1763293398908,0.455,3168.6,3167.2,0.193]
[1763293399085,0.455,3168.6,3167.3,0.4927]
[1763293401547,0.455,3168.6,3166.8,0.4927]
[1763293401747,3.782,3168.6,3167.0,0.4927]
[1763293401953,3.7052,3168.5,3166.6,0.4927]
[1763293402276,4.1602,3168.5,3166.6,0.4927]
[1763293402479,3.327,3168.3,3166.8,0.4927]
[1763293402713,3.327,3168.3,3166.5,0.4937]
[1763293402917,3.782,3168.2,3166.7,0.4927]
[1763293403296,0.455,3168.1,3166.7,0.4927]
[1763293403496,0.3782,3168.0,3166.7,0.4927]
[1763293403701,0.3782,3168.0,3167.0,0.4927]
[1763293403898,0.2,3167.9,3167.0,0.4927]
[1763293404103,0.2,3167.9,3167.1,0.193]
[1763293404901,0.2,3167.9,3167.1,0.6857]
[1763293405608,0.655,3167.9,3166.7,0.4927]
[1763293405788,0.655,3167.9,3166.5,0.001]
[1763293405991,0.655,3167.9,3166.9,0.4937]
[1763293406321,3.327,3168.3,3166.9,0.4937]
[1763293406621,3.327,3168.1,3166.9,0.4937]
[1763293408079,0.455,3168.0,3166.9,0.4937]
[1763293408518,3.327,3168.1,3166.9,0.4937]
[1763293409017,0.3782,3168.2,3166.9,0.4937]
[1763293409222,0.002,3168.3,3168.1,0.6419]
[1763293409722,0.002,3168.3,3168.2,0.4652]
[1763293410716,0.002,3168.3,3168.1,0.1767]
[1763293410911,0.002,3168.3,3167.9,0.193]
[1763293411299,0.002,3168.3,3168.0,0.4927]
[1763293411486,0.002,3168.3,3168.2,0.4652]
[1763293411904,0.002,3168.3,3167.9,0.193]
[1763293412107,0.002,3168.3,3167.9,0.6857]
[1763293413901,0.002,3168.3,3167.9,0.193]
[1763293414096,0.002,3168.3,3168.0,0.4927]
[1763293414295,0.002,3168.3,3167.9,0.193]
[1763293414521,0.002,3168.3,3168.2,0.4628]
[1763293414917,0.002,3168.3,3167.9,0.193]
[1763293415125,0.002,3168.3,3168.2,0.4628]
[1763293416191,0.002,3168.3,3168.2,0.9549]
[1763293416626,0.002,3168.3,3168.2,0.4628]
[1763293417248,0.002,3168.3,3167.9,0.193]
[1763293417410,0.005,3168.0,3167.3,0.4921]
[1763293418057,0.185,3167.9,3167.3,0.4921]
[1763293418419,0.185,3167.9,3167.1,0.4921]
[1763293419851,0.4996,3167.8,3167.0,0.1767]
[1763293420350,0.4996,3167.8,3166.7,0.4921]
[1763293420519,0.185,3167.9,3167.0,0.4921]
[1763293421033,1.08576,3167.9,3167.0,0.4921]
[1763293421354,1.08576,3167.9,3166.5,0.001]
[1763293421551,0.4996,3167.8,3166.6,0.4921]
[1763293422059,0.185,3167.9,3167.0,0.4921]
[1763293422468,3.327,3168.1,3167.1,0.1871]
[1763293422655,3.6599,3168.1,3167.1,0.1871]
[1763293422831,3.6599,3168.1,3167.2,0.4921]
[1763293423726,4.1595,3168.1,3167.2,0.4921]
[1763293425374,0.3329,3168.1,3167.2,0.4921]
[1763293425968,0.002,3168.3,3167.3,0.405504]
[1763293426172,0.4996,3168.2,3167.2,0.4921]
[1763293426481,3.8266,3168.2,3167.1,0.1871]
[1763293426869,0.5016,3168.1,3166.9,0.4931]
[1763293427073,0.38486,3168.1,3166.9,0.4931]
[1763293427277,0.88446,3168.1,3166.9,0.4931]
[1763293427676,0.5016,3168.1,3166.9,0.4931]
[1763293428373,0.002,3168.1,3168.0,0.6499]
[1763293428548,0.002,3168.1,3167.1,0.405504]
[1763293428897,0.5016,3168.1,3167.0,0.6792]
[1763293429054,0.5016,3168.1,3167.1,0.4921]
[1763293430293,3.8286,3168.1,3166.9,0.001]
[1763293430464,3.327,3167.9,3166.9,0.001]
[1763293430984,0.185,3167.8,3166.9,0.001]
[1763293431890,0.185,3167.8,3166.9,0.4931]
[1763293432389,0.002,3168.1,3166.9,0.4931]
[1763293434565,0.002,3168.1,3167.0,0.405504]
[1763293434969,0.002,3168.1,3166.9,0.4931]
[1763293434970,0.002,3168.1,3167.2,0.405504]
[1763293435271,0.002,3168.1,3168.0,0.4628]
[1763293436194,0.002,3168.1,3168.0,0.9549]
[1763293436571,0.002,3168.1,3168.0,0.4628]
[1763293437304,0.002,3168.1,3167.7,0.4921]
[1763293437672,0.002,3168.1,3168.0,0.4628]
[1763293438994,0.002,3168.1,3168.0,0.9549]
[1763293440521,0.4684,3168.1,3167.1,0.1871]
[1763293440701,0.7844,3168.1,3167.1,0.1871]
[1763293440888,0.316,3168.0,3167.1,0.1871]
[1763293441292,0.185,3167.9,3167.1,0.6792]
[1763293441806,0.185,3167.9,3166.9,0.001]
[1763293442009,0.185,3167.9,3166.9,0.4931]
[1763293442010,0.6846,3167.9,3166.9,0.4931]
[1763293443112,0.185,3167.9,3166.9,0.4931]
[1763293443684,0.4996,3167.8,3166.9,0.001]
[1763293444053,0.2832,3167.0,3166.9,0.001]
[1763293444524,0.7337,3167.0,3166.9,0.001]
[1763293445828,4.0607,3167.0,3166.9,0.001]
[1763293446031,4.74876396,3167.0,3166.9,0.001]
[1763293446189,5.15426796,3167.0,3166.9,0.001]
[1763293446388,5.80295038,3167.0,3166.9,0.001]
[1763293446837,5.39744638,3167.0,3166.9,0.001]
[1763293447200,4.74876396,3167.0,3166.9,0.001]
[1763293448353,5.15426796,3167.0,3166.9,0.001]
[1763293449625,4.74876396,3167.0,3166.9,0.001]
[1763293450056,6.93461666,3167.0,3166.9,0.001]
[1763293450349,6.28800876,3167.0,3166.9,0.001]
[1763293450654,6.93402553,3167.0,3166.9,0.001]
[1763293451016,6.48352553,3167.0,3166.9,0.001]
[1763293451358,7.71100876,3167.0,3166.9,0.001]
[1763293454163,5.88250476,3167.0,3166.9,0.001]
[1763293454514,2.55550476,3167.0,3166.9,0.001]
[1763293454727,1.13977,3167.0,3166.9,0.001]
[1763293454942,0.7337,3167.0,3166.9,0.001]
[1763293458694,0.7343,3167.0,3166.9,0.001]
[1763293458990,0.2832,3167.0,3166.9,0.001]
[1763293459193,0.7343,3167.0,3166.9,0.001]
[1763293459367,4.0613,3167.0,3166.9,0.001]
[1763293459694,4.46743,3167.0,3166.9,0.001]
[1763293462119,5.6011708,3167.0,3166.9,0.001]
[1763293463020,3.73313,3167.0,3166.9,0.491]
[1763293463220,3.327,3167.0,3166.9,0.491]
[1763293463384,1.1337408,3167.3,3166.9,0.491]
[1763293463584,3.327,3167.2,3166.9,0.001]
[1763293463809,3.6581,3167.0,3166.9,0.001]
[1763293464419,3.6601,3167.0,3166.9,0.001]
[1763293464620,4.0711,3167.0,3166.9,0.001]
[1763293464819,4.521,3167.0,3166.9,0.001]
[1763293466139,5.6547408,3167.0,3166.9,0.001]
[1763293466318,6.34050356,3167.0,3166.9,0.001]
[1763293468087,5.93499956,3167.0,3166.9,0.001]
[1763293469350,6.34050356,3167.0,3166.9,0.001]
[1763293469636,6.98737303,3167.0,3166.9,0.001]
[1763293470035,6.34050356,3167.0,3166.9,0.001]
[1763293470541,6.34102846,3167.0,3166.9,0.001]
[1763293470710,7.35852446,3167.0,3166.9,0.001]
[1763293471430,8.00596196,3167.0,3166.9,0.001]
[1763293473301,8.81489858,3167.0,3166.9,0.001]
[1763293473701,7.39189858,3167.0,3166.9,0.001]
[1763293473923,8.81489858,3167.0,3166.9,0.001]
[1763293474150,8.00596196,3167.0,3166.9,0.001]
[1763293474354,8.81489858,3167.0,3166.9,0.001]
[1763293474930,8.00596196,3167.0,3166.9,0.001]
[1763293475331,8.41146596,3167.0,3166.9,0.001]
[1763293475531,9.22040258,3167.0,3166.9,0.001]
[1763293476034,8.81489858,3167.0,3166.9,0.001]
[1763293476255,8.00596196,3167.0,3166.9,0.001]
[1763293476431,7.55606196,3167.0,3166.9,0.001]
[1763293476623,7.55606196,3167.0,3165.8,0.0249]
[1763293476624,3.327,3166.4,3165.8,0.0249]
[1763293476833,3.732504,3165.3,3163.7,0.4863]
[1763293477033,3.327,3164.9,3163.7,0.4863]
[1763293477243,0.81140801,3166.0,3164.1,0.4863]
[1763293477434,0.18932854,3166.0,3165.1,0.1931]
[1763293477650,0.4869,3165.9,3164.8,0.4868]
[1763293477901,1.21691201,3166.3,3164.9,0.4863]
[1763293478026,1.13578989,3166.3,3164.9,0.4863]
[1763293478232,4.4607408,3166.2,3165.0,0.4863]
[1763293478430,4.4607408,3166.2,3165.1,0.1931]
[1763293478632,3.327,3166.0,3165.1,0.1931]
[1763293478954,0.1693,3165.2,3164.4,0.4863]
[1763293479164,3.4963,3165.2,3164.4,0.4863]
[1763293480380,3.98,3165.2,3164.1,0.4863]
[1763293480860,3.327,3165.0,3164.1,0.4863]
[1763293481045,3.327,3164.8,3164.1,0.4863]
[1763293481690,3.327,3164.6,3164.1,0.1931]
[1763293481856,3.327,3164.6,3163.9,0.4863]
[1763293482653,3.327,3164.6,3164.0,0.001]
[1763293482858,3.327,3164.5,3164.0,0.001]
[1763293483169,3.327,3164.5,3164.1,0.1931]
[1763293483357,3.6597,3164.5,3164.4,0.4868]
[1763293483690,3.327,3164.5,3164.4,0.9731]
[1763293483847,3.327,3165.0,3164.4,0.9731]
[1763293484042,3.327,3165.0,3164.5,0.4863]
[1763293484353,3.327,3165.0,3164.9,0.4868]
[1763293484750,0.1977,3165.8,3164.9,0.9731]
[1763293484982,2.40466408,3166.1,3165.7,0.6799]
[1763293484983,1.91776408,3166.1,3165.7,0.6799]
[1763293485278,1.423,3166.1,3166.0,0.4868]
[1763293485647,1.423,3166.1,3166.0,0.9731]
[1763293485847,4.75,3166.1,3166.0,0.9731]
[1763293486384,1.423,3166.1,3166.0,0.9731]
[1763293486591,0.185,3167.9,3166.2,0.6639]
[1763293486911,0.002,3168.1,3166.9,0.4868]
[1763293487505,0.002,3168.1,3167.3,0.4868]
[1763293487840,0.002,3168.1,3167.3,0.9731]
[1763293490591,0.0845,3167.9,3167.3,0.4868]
[1763293490798,0.0845,3167.9,3166.9,0.4863]
[1763293491379,0.4889,3168.1,3167.3,0.4868]
[1763293491581,0.002,3168.1,3167.3,0.4868]
[1763293491782,0.002,3168.1,3167.3,0.9731]
[1763293495288,0.002,3168.1,3167.4,0.405504]
[1763293495447,0.002,3168.5,3168.2,0.6789]
[1763293495761,0.002,3168.5,3168.4,0.4868]
[1763293496150,0.002,3168.5,3168.4,0.9731]
[1763293498104,0.002,3168.5,3168.4,0.4868]
[1763293498305,0.002,3168.5,3168.1,0.4863]
[1763293498467,0.002,3168.5,3167.9,0.1931]
[1763293500099,0.002,3168.5,3168.4,0.4868]
[1763293500502,0.2602,3168.5,3167.9,0.1931]
[1763293500673,3.327,3168.4,3167.4,0.4863]
[1763293500874,3.327,3168.2,3167.0,0.1921]
[1763293501377,3.327,3168.2,3167.0,0.6784]
[1763293501811,3.8139,3168.2,3167.0,0.6784]
[1763293502195,3.327,3168.2,3167.0,0.6794]
[1763293502517,3.327,3168.0,3167.1,0.4863]
[1763293502681,3.327,3167.8,3167.1,0.4863]
[1763293502876,3.327,3167.8,3167.0,0.1931]
[1763293503219,0.2582,3167.1,3167.0,0.001]
[1763293503688,3.327,3167.6,3167.0,0.001]
[1763293504241,3.5247,3167.7,3167.1,0.1931]
[1763293504376,0.4869,3168.6,3167.6,0.4868]
[1763293504583,0.456,3168.4,3167.6,0.4868]
[1763293504823,0.456,3169.0,3167.6,0.9755]
[1763293505127,0.456,3169.0,3167.7,0.4887]
[1763293505452,3.327,3168.6,3167.6,0.4868]
[1763293505613,3.327,3168.3,3167.6,0.4868]
[1763293507593,0.002,3168.7,3168.2,0.6385]
[1763293507796,0.002,3168.7,3168.4,0.451]
[1763293508323,0.002,3168.7,3168.4,0.9397]
[1763293512025,0.002,3168.7,3168.4,1.345204]
[1763293512628,0.002,3168.7,3168.5,0.405504]
[1763293512788,0.002,3168.9,3168.6,1.0315748]
[1763293512987,0.002,3168.9,3168.8,0.856504]
[1763293513194,0.002,3169.3,3168.9,0.405504]
[1763293513489,0.002,3169.7,3169.2,0.856504]
[1763293513690,0.002,3169.7,3169.3,1.345204]
[1763293514101,0.002,3169.7,3169.6,0.405504]
[1763293514429,0.002,3171.6,3169.8,0.905504]
[1763293514721,0.002,3171.6,3169.4,0.4555]
[1763293514722,1.9019,3171.3,3170.0,0.405504]
[1763293514922,0.19019,3171.2,3170.0,0.405504]
[1763293515087,0.19019,3171.2,3170.1,0.1867]
[1763293515533,0.19019,3171.2,3170.2,0.4555]
[1763293516128,0.19019,3171.2,3170.3,0.405504]
[1763293516336,0.002,3171.6,3171.1,0.6511]
[1763293516742,0.002,3171.6,3171.2,0.4555]
[1763293517150,0.002,3171.6,3171.5,0.4644]
[1763293517638,0.002,3171.6,3171.5,0.9199]
[1763293518152,0.002,3171.6,3171.5,1.325404]
[1763293518559,0.002,3171.6,3171.5,1.5079444]
[1763293519463,0.4789,3173.6,3171.6,0.405504]
[1763293519635,0.4789,3173.3,3171.7,0.4555]
[1763293521032,0.002,3171.9,3171.8,0.405504]
[1763293521241,0.002,3171.9,3171.7,0.4555]
[1763293521533,0.002,3171.9,3171.8,0.4644]
[1763293522149,0.002,3171.9,3171.2,0.861004]
[1763293522321,0.002,3171.9,3171.2,0.4555]
[1763293522522,0.002,3171.9,3171.1,0.1867]
[1763293522759,0.002,3171.9,3171.2,0.4555]
[1763293522940,0.002,3171.9,3171.8,0.4644]
[1763293523369,0.002,3171.9,3171.1,0.1867]
[1763293523370,0.002,3171.9,3171.4,0.4555]
[1763293523882,0.002,3171.9,3171.8,0.4644]
[1763293524375,0.002,3171.9,3171.8,0.9199]
[1763293525077,0.002,3171.9,3171.2,0.4555]
[1763293525277,0.1827,3171.9,3170.8,0.6422]
[1763293525477,0.6616,3171.9,3170.8,0.6422]
[1763293525785,0.6616,3171.9,3170.8,0.1867]
[1763293525960,0.4789,3171.8,3170.8,0.1867]
[1763293526660,0.5233,3170.9,3169.8,0.4555]
[1763293527150,0.4775,3171.4,3170.3,0.405504]
[1763293527668,0.1827,3171.9,3170.4,0.405504]
[1763293528073,0.4789,3171.8,3170.5,0.4555]
[1763293528387,0.002,3171.9,3170.5,0.4555]
[1763293528590,0.1827,3171.9,3170.6,0.405504]
[1763293528790,0.6616,3171.9,3170.5,0.4555]
[1763293528952,0.6616,3171.9,3170.6,0.405504]
[1763293529154,0.1827,3171.9,3170.6,0.405504]
[1763293529352,0.1827,3171.9,3170.8,0.405504]
[1763293529549,0.6616,3171.9,3170.7,0.4555]
[1763293529750,0.6616,3171.9,3170.5,0.405504]
[1763293529971,0.4789,3171.8,3170.4,0.4555]
[1763293530288,4.4607408,3171.7,3170.1,0.6422]
[1763293530614,3.82096408,3171.6,3170.1,0.6422]
[1763293530922,4.29986408,3171.6,3170.2,0.4555]
[1763293531084,0.1827,3171.9,3170.3,0.405504]
[1763293531287,0.002,3171.9,3170.3,0.405504]
[1763293531618,0.002,3171.9,3170.5,0.405504]
[1763293531790,0.6616,3171.9,3170.5,0.405504]
[1763293531986,0.002,3171.9,3170.7,0.405504]
[1763293532414,0.1827,3171.9,3170.9,0.405504]
[1763293532822,0.1827,3171.9,3170.6,0.405504]
[1763293532823,0.4789,3171.8,3170.6,0.405504]
[1763293532986,0.4789,3171.8,3170.6,0.861004]
[1763293533728,0.4789,3171.8,3170.6,0.4555]
[1763293534084,0.1827,3171.9,3170.7,0.405504]
[1763293534297,0.1827,3171.9,3170.8,0.4555]
[1763293534488,0.6597,3171.9,3170.2,0.4905]
[1763293534821,1.1337408,3171.8,3170.2,0.4905]
[1763293535026,0.51204408,3171.7,3170.2,0.4905]
[1763293535206,0.477,3171.7,3170.2,0.4905]
[1763293535407,0.477,3171.7,3170.3,0.405504]
[1763293535920,0.477,3171.7,3170.2,0.4905]
[1763293535921,0.477,3171.7,3170.4,0.4905]
[1763293536986,3.804,3171.7,3170.1,0.1867]
[1763293537310,3.804,3171.7,3170.2,0.4905]
[1763293537490,0.8574,3171.6,3170.8,0.001]
[1763293538027,0.477,3171.5,3170.8,0.001]
[1763293539536,0.3445,3170.9,3170.8,0.001]
[1763293539701,5.3914448,3170.9,3170.8,0.001]
[1763293540026,4.4607408,3170.5,3170.4,0.001]
[1763293540226,5.18754592,3170.5,3170.4,0.001]
[1763293540392,2.67974592,3170.5,3170.4,0.001]
[1763293540592,0.1807,3170.9,3170.4,0.001]
[1763293540796,0.477,3170.8,3170.4,0.001]
[1763293540996,0.1807,3170.9,3170.4,0.001]
[1763293541695,0.6577,3170.9,3170.4,0.001]
[1763293542121,0.1807,3170.9,3170.4,0.001]